Workbook

Sheet Illustration Calculator
B2: ILLUSTRATION TOOL
B3: For Agent Use Only
B5: Plan # Selection | D5: Age | E5: Year | F5: Exp. Annuity Payment | H5: Total Payment
B6: Plan # 7 | D6: =B9 -> 40 | E6: 1 | F6: =_xlfn.IFNA(IF(E6="", "",HLOOKUP($B$6, 'Plan Calculations'!$G$2:$L$75, E6+1, FALSE)), "Something is wrong") -> 0 | H6: =SUM(F6:F105) -> 180000
D7: =IF(E7="", "", D6+1) -> 41 | E7: =IF(E6="", "", IF($B$9+E6-1>=110, "", E6+1)) -> 2 | F7: =_xlfn.IFNA(IF(E7="", "",HLOOKUP($B$6, 'Plan Calculations'!$G$2:$L$75, E7+1, FALSE)), "Something is wrong") -> 0
B8: Current Age | D8: =IF(E8="", "", D7+1) -> 42 | E8: =IF(E7="", "", IF($B$9+E7-1>=110, "", E7+1)) -> 3 | F8: =_xlfn.IFNA(IF(E8="", "",HLOOKUP($B$6, 'Plan Calculations'!$G$2:$L$75, E8+1, FALSE)), "Something is wrong") -> 0 | H8: Total Years of Payment
B9: 40 | D9: 43 | E9: 4 | F9: =_xlfn.IFNA(IF(E9="", "",HLOOKUP($B$6, 'Plan Calculations'!$G$2:$L$75, E9+1, FALSE)), "Something is wrong") -> 0 | H9: =COUNTIF(F6:F105, ">0") -> 5
D10: 44 | E10: 5 | F10: =_xlfn.IFNA(IF(E10="", "",HLOOKUP($B$6, 'Plan Calculations'!$G$2:$L$75, E10+1, FALSE)), "Something is wrong") -> 0
B11: =IF(OR(B6="Plan # 1", B6="Plan # 3", B6="Plan # 5", B6="Plan # 6", B6="plan # 7"), "Age Payments Begin", "") -> Age Payments Begin | D11: 45 | E11: 6 | F11: =_xlfn.IFNA(IF(E11="", "",HLOOKUP($B$6, 'Plan Calculations'!$G$2:$L$75, E11+1, FALSE)), "Something is wrong") -> 0 | H11: Age of Last Payment
B12: 41 | D12: 46 | E12: 7 | F12: =_xlfn.IFNA(IF(E12="", "",HLOOKUP($B$6, 'Plan Calculations'!$G$2:$L$75, E12+1, FALSE)), "Something is wrong") -> 0 | H12: =IF(OR(B6="Plan # 1", B6="plan # 5", B6="plan # 6", B6="plan # 7"), B12+B15-1, IF(B6="Plan # 2", 94, IF(B6="Plan # 3", 110, 100))) -> 50
D13: 47 | E13: 8 | F13: =_xlfn.IFNA(IF(E13="", "",HLOOKUP($B$6, 'Plan Calculations'!$G$2:$L$75, E13+1, FALSE)), "Something is wrong") -> 30000
B14: =IF(OR(B6="Plan # 1", B6="Plan # 5", B6="Plan # 6", B6="plan # 7"), "Years of Payment", "") -> Years of Payment | D14: 48 | E14: 9 | F14: =_xlfn.IFNA(IF(E14="", "",HLOOKUP($B$6, 'Plan Calculations'!$G$2:$L$75, E14+1, FALSE)), "Something is wrong") -> 0
B15: 10 | D15: 49 | E15: 10 | F15: =_xlfn.IFNA(IF(E15="", "",HLOOKUP($B$6, 'Plan Calculations'!$G$2:$L$75, E15+1, FALSE)), "Something is wrong") -> 30000
D16: 50 | E16: 11 | F16: =_xlfn.IFNA(IF(E16="", "",HLOOKUP($B$6, 'Plan Calculations'!$G$2:$L$75, E16+1, FALSE)), "Something is wrong") -> 0
D17: 51 | E17: 12 | F17: =_xlfn.IFNA(IF(E17="", "",HLOOKUP($B$6, 'Plan Calculations'!$G$2:$L$75, E17+1, FALSE)), "Something is wrong") -> 60000
D18: 52 | E18: 13 | F18: =_xlfn.IFNA(IF(E18="", "",HLOOKUP($B$6, 'Plan Calculations'!$G$2:$L$75, E18+1, FALSE)), "Something is wrong") -> 0
D19: 53 | E19: 14 | F19: =_xlfn.IFNA(IF(E19="", "",HLOOKUP($B$6, 'Plan Calculations'!$G$2:$L$75, E19+1, FALSE)), "Something is wrong") -> 30000
D20: 54 | E20: 15 | F20: =_xlfn.IFNA(IF(E20="", "",HLOOKUP($B$6, 'Plan Calculations'!$F$2:$L$75, E20+1, FALSE)), "Something is wrong") -> 0
D21: 55 | E21: 16 | F21: =_xlfn.IFNA(IF(E21="", "",HLOOKUP($B$6, 'Plan Calculations'!$F$2:$L$75, E21+1, FALSE)), "Something is wrong") -> 30000
D22: 56 | E22: 17 | F22: =_xlfn.IFNA(IF(E22="", "",HLOOKUP($B$6, 'Plan Calculations'!$F$2:$L$75, E22+1, FALSE)), "Something is wrong") -> 0
D23: 57 | E23: 18 | F23: =_xlfn.IFNA(IF(E23="", "",HLOOKUP($B$6, 'Plan Calculations'!$F$2:$L$75, E23+1, FALSE)), "Something is wrong") -> 0
D24: 58 | E24: 19 | F24: =_xlfn.IFNA(IF(E24="", "",HLOOKUP($B$6, 'Plan Calculations'!$F$2:$L$75, E24+1, FALSE)), "Something is wrong") -> 0
D25: 59 | E25: 20 | F25: =_xlfn.IFNA(IF(E25="", "",HLOOKUP($B$6, 'Plan Calculations'!$F$2:$L$75, E25+1, FALSE)), "Something is wrong") -> 0
D26: 60 | E26: 21 | F26: =_xlfn.IFNA(IF(E26="", "",HLOOKUP($B$6, 'Plan Calculations'!$F$2:$L$75, E26+1, FALSE)), "Something is wrong") -> 0
D27: 61 | E27: 22 | F27: =_xlfn.IFNA(IF(E27="", "",HLOOKUP($B$6, 'Plan Calculations'!$F$2:$L$75, E27+1, FALSE)), "Something is wrong") -> 0
D28: 62 | E28: 23 | F28: =_xlfn.IFNA(IF(E28="", "",HLOOKUP($B$6, 'Plan Calculations'!$F$2:$L$75, E28+1, FALSE)), "Something is wrong") -> 0
D29: 63 | E29: 24 | F29: =_xlfn.IFNA(IF(E29="", "",HLOOKUP($B$6, 'Plan Calculations'!$F$2:$L$75, E29+1, FALSE)), "Something is wrong") -> 0
D30: 64 | E30: 25 | F30: =_xlfn.IFNA(IF(E30="", "",HLOOKUP($B$6, 'Plan Calculations'!$F$2:$L$75, E30+1, FALSE)), "Something is wrong") -> 0
D31: 65 | E31: 26 | F31: =_xlfn.IFNA(IF(E31="", "",HLOOKUP($B$6, 'Plan Calculations'!$F$2:$L$75, E31+1, FALSE)), "Something is wrong") -> 0
D32: 66 | E32: 27 | F32: =_xlfn.IFNA(IF(E32="", "",HLOOKUP($B$6, 'Plan Calculations'!$F$2:$L$75, E32+1, FALSE)), "Something is wrong") -> 0
D33: 67 | E33: 28 | F33: =_xlfn.IFNA(IF(E33="", "",HLOOKUP($B$6, 'Plan Calculations'!$F$2:$L$75, E33+1, FALSE)), "Something is wrong") -> 0
D34: 68 | E34: 29 | F34: =_xlfn.IFNA(IF(E34="", "",HLOOKUP($B$6, 'Plan Calculations'!$F$2:$L$75, E34+1, FALSE)), "Something is wrong") -> 0
D35: 69 | E35: 30 | F35: =_xlfn.IFNA(IF(E35="", "",HLOOKUP($B$6, 'Plan Calculations'!$F$2:$L$75, E35+1, FALSE)), "Something is wrong") -> 0
D36: 70 | E36: 31 | F36: =_xlfn.IFNA(IF(E36="", "",HLOOKUP($B$6, 'Plan Calculations'!$F$2:$L$75, E36+1, FALSE)), "Something is wrong") -> 0
D37: 71 | E37: 32 | F37: =_xlfn.IFNA(IF(E37="", "",HLOOKUP($B$6, 'Plan Calculations'!$F$2:$L$75, E37+1, FALSE)), "Something is wrong") -> 0
D38: 72 | E38: 33 | F38: =_xlfn.IFNA(IF(E38="", "",HLOOKUP($B$6, 'Plan Calculations'!$F$2:$L$75, E38+1, FALSE)), "Something is wrong") -> 0
D39: 73 | E39: 34 | F39: =_xlfn.IFNA(IF(E39="", "",HLOOKUP($B$6, 'Plan Calculations'!$F$2:$L$75, E39+1, FALSE)), "Something is wrong") -> 0
D40: 74 | E40: 35 | F40: =_xlfn.IFNA(IF(E40="", "",HLOOKUP($B$6, 'Plan Calculations'!$F$2:$L$75, E40+1, FALSE)), "Something is wrong") -> 0
D41: 75 | E41: 36 | F41: =_xlfn.IFNA(IF(E41="", "",HLOOKUP($B$6, 'Plan Calculations'!$F$2:$L$75, E41+1, FALSE)), "Something is wrong") -> 0
D42: 76 | E42: 37 | F42: =_xlfn.IFNA(IF(E42="", "",HLOOKUP($B$6, 'Plan Calculations'!$F$2:$L$75, E42+1, FALSE)), "Something is wrong") -> 0
D43: 77 | E43: 38 | F43: =_xlfn.IFNA(IF(E43="", "",HLOOKUP($B$6, 'Plan Calculations'!$F$2:$L$75, E43+1, FALSE)), "Something is wrong") -> 0
D44: 78 | E44: 39 | F44: =_xlfn.IFNA(IF(E44="", "",HLOOKUP($B$6, 'Plan Calculations'!$F$2:$L$75, E44+1, FALSE)), "Something is wrong") -> 0
D45: 79 | E45: 40 | F45: =_xlfn.IFNA(IF(E45="", "",HLOOKUP($B$6, 'Plan Calculations'!$F$2:$L$75, E45+1, FALSE)), "Something is wrong") -> 0
D46: 80 | E46: 41 | F46: =_xlfn.IFNA(IF(E46="", "",HLOOKUP($B$6, 'Plan Calculations'!$F$2:$L$75, E46+1, FALSE)), "Something is wrong") -> 0
D47: 81 | E47: 42 | F47: =_xlfn.IFNA(IF(E47="", "",HLOOKUP($B$6, 'Plan Calculations'!$F$2:$L$75, E47+1, FALSE)), "Something is wrong") -> 0
D48: 82 | E48: 43 | F48: =_xlfn.IFNA(IF(E48="", "",HLOOKUP($B$6, 'Plan Calculations'!$F$2:$L$75, E48+1, FALSE)), "Something is wrong") -> 0
D49: 83 | E49: 44 | F49: =_xlfn.IFNA(IF(E49="", "",HLOOKUP($B$6, 'Plan Calculations'!$F$2:$L$75, E49+1, FALSE)), "Something is wrong") -> 0
D50: 84 | E50: 45 | F50: =_xlfn.IFNA(IF(E50="", "",HLOOKUP($B$6, 'Plan Calculations'!$F$2:$L$75, E50+1, FALSE)), "Something is wrong") -> 0
D51: 85 | E51: 46 | F51: =_xlfn.IFNA(IF(E51="", "",HLOOKUP($B$6, 'Plan Calculations'!$F$2:$L$75, E51+1, FALSE)), "Something is wrong") -> 0
D52: 86 | E52: 47 | F52: =_xlfn.IFNA(IF(E52="", "",HLOOKUP($B$6, 'Plan Calculations'!$F$2:$L$75, E52+1, FALSE)), "Something is wrong") -> 0
D53: 87 | E53: 48 | F53: =_xlfn.IFNA(IF(E53="", "",HLOOKUP($B$6, 'Plan Calculations'!$F$2:$L$75, E53+1, FALSE)), "Something is wrong") -> 0
D54: 88 | E54: 49 | F54: =_xlfn.IFNA(IF(E54="", "",HLOOKUP($B$6, 'Plan Calculations'!$F$2:$L$75, E54+1, FALSE)), "Something is wrong") -> 0
D55: 89 | E55: 50 | F55: =_xlfn.IFNA(IF(E55="", "",HLOOKUP($B$6, 'Plan Calculations'!$F$2:$L$75, E55+1, FALSE)), "Something is wrong") -> 0
D56: 90 | E56: 51 | F56: =_xlfn.IFNA(IF(E56="", "",HLOOKUP($B$6, 'Plan Calculations'!$F$2:$L$75, E56+1, FALSE)), "Something is wrong") -> 0
D57: 91 | E57: 52 | F57: =_xlfn.IFNA(IF(E57="", "",HLOOKUP($B$6, 'Plan Calculations'!$F$2:$L$75, E57+1, FALSE)), "Something is wrong") -> 0
D58: 92 | E58: 53 | F58: =_xlfn.IFNA(IF(E58="", "",HLOOKUP($B$6, 'Plan Calculations'!$F$2:$L$75, E58+1, FALSE)), "Something is wrong") -> 0
D59: 93 | E59: 54 | F59: =_xlfn.IFNA(IF(E59="", "",HLOOKUP($B$6, 'Plan Calculations'!$F$2:$L$75, E59+1, FALSE)), "Something is wrong") -> 0
D60: 94 | E60: 55 | F60: =_xlfn.IFNA(IF(E60="", "",HLOOKUP($B$6, 'Plan Calculations'!$F$2:$L$75, E60+1, FALSE)), "Something is wrong") -> 0
D61: 95 | E61: 56 | F61: =_xlfn.IFNA(IF(E61="", "",HLOOKUP($B$6, 'Plan Calculations'!$F$2:$L$75, E61+1, FALSE)), "Something is wrong") -> 0
D62: 96 | E62: 57 | F62: =_xlfn.IFNA(IF(E62="", "",HLOOKUP($B$6, 'Plan Calculations'!$F$2:$L$75, E62+1, FALSE)), "Something is wrong") -> 0
D63: 97 | E63: 58 | F63: =_xlfn.IFNA(IF(E63="", "",HLOOKUP($B$6, 'Plan Calculations'!$F$2:$L$75, E63+1, FALSE)), "Something is wrong") -> 0
D64: 98 | E64: 59 | F64: =_xlfn.IFNA(IF(E64="", "",HLOOKUP($B$6, 'Plan Calculations'!$F$2:$L$75, E64+1, FALSE)), "Something is wrong") -> 0
D65: 99 | E65: 60 | F65: =_xlfn.IFNA(IF(E65="", "",HLOOKUP($B$6, 'Plan Calculations'!$F$2:$L$75, E65+1, FALSE)), "Something is wrong") -> 0
D66: 100 | E66: 61 | F66: =_xlfn.IFNA(IF(E66="", "",HLOOKUP($B$6, 'Plan Calculations'!$F$2:$L$75, E66+1, FALSE)), "Something is wrong") -> 0
D67: 101 | E67: 62 | F67: =_xlfn.IFNA(IF(E67="", "",HLOOKUP($B$6, 'Plan Calculations'!$F$2:$L$75, E67+1, FALSE)), "Something is wrong") -> 0
D68: 102 | E68: 63 | F68: =_xlfn.IFNA(IF(E68="", "",HLOOKUP($B$6, 'Plan Calculations'!$F$2:$L$75, E68+1, FALSE)), "Something is wrong") -> 0
D69: 103 | E69: 64 | F69: =_xlfn.IFNA(IF(E69="", "",HLOOKUP($B$6, 'Plan Calculations'!$F$2:$L$75, E69+1, FALSE)), "Something is wrong") -> 0
D70: 104 | E70: 65 | F70: =_xlfn.IFNA(IF(E70="", "",HLOOKUP($B$6, 'Plan Calculations'!$F$2:$L$75, E70+1, FALSE)), "Something is wrong") -> 0
D71: 105 | E71: 66 | F71: =_xlfn.IFNA(IF(E71="", "",HLOOKUP($B$6, 'Plan Calculations'!$F$2:$L$75, E71+1, FALSE)), "Something is wrong") -> 0
D72: =IF(E72="", "", D71+1) -> 106 | E72: =IF(E71="", "", IF($B$9+E71-1>=110, "", E71+1)) -> 67 | F72: =_xlfn.IFNA(IF(E72="", "",HLOOKUP($B$6, 'Plan Calculations'!$F$2:$L$75, E72+1, FALSE)), "Something is wrong") -> 0
D73: 107 | E73: 68 | F73: =_xlfn.IFNA(IF(E73="", "",HLOOKUP($B$6, 'Plan Calculations'!$F$2:$L$75, E73+1, FALSE)), "Something is wrong") -> 0
D74: 108 | E74: 69 | F74: =_xlfn.IFNA(IF(E74="", "",HLOOKUP($B$6, 'Plan Calculations'!$F$2:$L$75, E74+1, FALSE)), "Something is wrong") -> 0
D75: 109 | E75: 70 | F75: =_xlfn.IFNA(IF(E75="", "",HLOOKUP($B$6, 'Plan Calculations'!$F$2:$L$75, E75+1, FALSE)), "Something is wrong") -> 0
D76: 110 | E76: 71 | F76: =_xlfn.IFNA(IF(E76="", "",HLOOKUP($B$6, 'Plan Calculations'!$F$2:$L$75, E76+1, FALSE)), "Something is wrong") -> 0
F77: =_xlfn.IFNA(IF(E77="", "",HLOOKUP($B$6, 'Plan Calculations'!$F$2:$L$75, E77+1, FALSE)), "Something is wrong") -> 
F78: =_xlfn.IFNA(IF(E78="", "",HLOOKUP($B$6, 'Plan Calculations'!$F$2:$L$75, E78+1, FALSE)), "Something is wrong") -> 
F79: =_xlfn.IFNA(IF(E79="", "",HLOOKUP($B$6, 'Plan Calculations'!$F$2:$L$75, E79+1, FALSE)), "Something is wrong") -> 
F80: =_xlfn.IFNA(IF(E80="", "",HLOOKUP($B$6, 'Plan Calculations'!$F$2:$L$75, E80+1, FALSE)), "Something is wrong") -> 
F81: =_xlfn.IFNA(IF(E81="", "",HLOOKUP($B$6, 'Plan Calculations'!$F$2:$L$75, E81+1, FALSE)), "Something is wrong") -> 
F82: =_xlfn.IFNA(IF(E82="", "",HLOOKUP($B$6, 'Plan Calculations'!$F$2:$L$75, E82+1, FALSE)), "Something is wrong") -> 
F83: =_xlfn.IFNA(IF(E83="", "",HLOOKUP($B$6, 'Plan Calculations'!$F$2:$L$75, E83+1, FALSE)), "Something is wrong") -> 
F84: =_xlfn.IFNA(IF(E84="", "",HLOOKUP($B$6, 'Plan Calculations'!$F$2:$L$75, E84+1, FALSE)), "Something is wrong") -> 
F85: =_xlfn.IFNA(IF(E85="", "",HLOOKUP($B$6, 'Plan Calculations'!$F$2:$L$75, E85+1, FALSE)), "Something is wrong") -> 
F86: =_xlfn.IFNA(IF(E86="", "",HLOOKUP($B$6, 'Plan Calculations'!$F$2:$L$75, E86+1, FALSE)), "Something is wrong") -> 
F87: =_xlfn.IFNA(IF(E87="", "",HLOOKUP($B$6, 'Plan Calculations'!$F$2:$L$75, E87+1, FALSE)), "Something is wrong") -> 
F88: =_xlfn.IFNA(IF(E88="", "",HLOOKUP($B$6, 'Plan Calculations'!$F$2:$L$75, E88+1, FALSE)), "Something is wrong") -> 
F89: =_xlfn.IFNA(IF(E89="", "",HLOOKUP($B$6, 'Plan Calculations'!$F$2:$L$75, E89+1, FALSE)), "Something is wrong") -> 
F90: =_xlfn.IFNA(IF(E90="", "",HLOOKUP($B$6, 'Plan Calculations'!$F$2:$L$75, E90+1, FALSE)), "Something is wrong") -> 
F91: =_xlfn.IFNA(IF(E91="", "",HLOOKUP($B$6, 'Plan Calculations'!$F$2:$L$75, E91+1, FALSE)), "Something is wrong") -> 
F92: =_xlfn.IFNA(IF(E92="", "",HLOOKUP($B$6, 'Plan Calculations'!$F$2:$L$75, E92+1, FALSE)), "Something is wrong") -> 
F93: =_xlfn.IFNA(IF(E93="", "",HLOOKUP($B$6, 'Plan Calculations'!$F$2:$L$75, E93+1, FALSE)), "Something is wrong") -> 
F94: =_xlfn.IFNA(IF(E94="", "",HLOOKUP($B$6, 'Plan Calculations'!$F$2:$L$75, E94+1, FALSE)), "Something is wrong") -> 
F95: =_xlfn.IFNA(IF(E95="", "",HLOOKUP($B$6, 'Plan Calculations'!$F$2:$L$75, E95+1, FALSE)), "Something is wrong") -> 
F96: =_xlfn.IFNA(IF(E96="", "",HLOOKUP($B$6, 'Plan Calculations'!$F$2:$L$75, E96+1, FALSE)), "Something is wrong") -> 
F97: =_xlfn.IFNA(IF(E97="", "",HLOOKUP($B$6, 'Plan Calculations'!$F$2:$L$75, E97+1, FALSE)), "Something is wrong") -> 
F98: =_xlfn.IFNA(IF(E98="", "",HLOOKUP($B$6, 'Plan Calculations'!$F$2:$L$75, E98+1, FALSE)), "Something is wrong") -> 
F99: =_xlfn.IFNA(IF(E99="", "",HLOOKUP($B$6, 'Plan Calculations'!$F$2:$L$75, E99+1, FALSE)), "Something is wrong") -> 
F100: =_xlfn.IFNA(IF(E100="", "",HLOOKUP($B$6, 'Plan Calculations'!$F$2:$L$75, E100+1, FALSE)), "Something is wrong") -> 
F101: =_xlfn.IFNA(IF(E101="", "",HLOOKUP($B$6, 'Plan Calculations'!$F$2:$L$75, E101+1, FALSE)), "Something is wrong") -> 
F102: =_xlfn.IFNA(IF(E102="", "",HLOOKUP($B$6, 'Plan Calculations'!$F$2:$L$75, E102+1, FALSE)), "Something is wrong") -> 
F103: =_xlfn.IFNA(IF(E103="", "",HLOOKUP($B$6, 'Plan Calculations'!$F$2:$L$75, E103+1, FALSE)), "Something is wrong") -> 
F104: =_xlfn.IFNA(IF(E104="", "",HLOOKUP($B$6, 'Plan Calculations'!$F$2:$L$75, E104+1, FALSE)), "Something is wrong") -> 
F105: =_xlfn.IFNA(IF(E105="", "",HLOOKUP($B$6, 'Plan Calculations'!$F$2:$L$75, E105+1, FALSE)), "Something is wrong") -> 

Sheet Plan Calculations
B2: Years of Payment | F2: Plan # 1 | G2: Plan # 2 | H2: Plan # 3 | I2: Plan # 4 | J2: Plan # 5 | K2: Plan # 6 | L2: Plan # 7
B3: ='Illustration Calculator'!B15 -> 10 | C3: =B6 -> 40 | D3: 1 | E3: Year 1 | F3: =IF(AND($B$6+D3-1>=$B$9, $B$6+D3-1<$B$9+$B$3), 15000, 0) -> 0 | G3: =IF($B$6+D3-1< 95, IF($B$6+D3-1=65, 25000, IF($B$6+D3-1>65, 25000+1000*($B$6+D3-1-65), 0)), 0) -> 0 | H3: =IF(OR($B$6+D3-1<$B$9, $B$6+D3-1>110), 0, 600*12) -> 0 | I3: =IF(AND($B$6+D3-1>=60, $B$6+D3-1<=100), ($B$6+D3-1)*1000, 0) -> 0 | J3: =IF(AND($B$6+D3-1>=$B$9, $B$6+D3-1<$B$9+$B$3), IF($B$6+D3-1<($B$9+$B$3/2), 19000, 25000), 0) -> 0 | K3: =IF(AND($B$6+D3-1>=$B$9, $B$6+D3-1<($B$9+$B$3)), 100000/($B$3-1), 0) -> 0 | L3: =IF(AND($B$6+D3-1>=$B$9,$B$6+D3-1<$B$9+$B$3),IF(AND(ISEVEN($B$6+D3-1), ISEVEN($B$9)),30000,IF(AND(ISODD($B$6+D3-1), ISODD($B$9)), 30000,0)), 0) -> 0
C4: =C3+1 -> 41 | D4: 2 | E4: Year 2 | F4: =IF(AND($B$6+D4-1>=$B$9, $B$6+D4-1<$B$9+$B$3), 15000, 0) -> 0 | G4: =IF($B$6+D4-1< 95, IF($B$6+D4-1=65, 25000, IF($B$6+D4-1>65, 25000+1000*($B$6+D4-1-65), 0)), 0) -> 0 | H4: =IF(OR($B$6+D4-1<$B$9, $B$6+D4-1>110), 0, 600*12) -> 0 | I4: =IF(AND($B$6+D4-1>=60, $B$6+D4-1<=100), ($B$6+D4-1)*1000, 0) -> 0 | J4: =IF(AND($B$6+D4-1>=$B$9, $B$6+D4-1<$B$9+$B$3), IF($B$6+D4-1<($B$9+$B$3/2), 19000, 25000), 0) -> 0 | K4: 0 | L4: 0
B5: Current Age of Client | C5: =C4+1 -> 42 | D5: 3 | E5: Year 3 | F5: =IF(AND($B$6+D5-1>=$B$9, $B$6+D5-1<$B$9+$B$3), 15000, 0) -> 0 | G5: =IF($B$6+D5-1< 95, IF($B$6+D5-1=65, 25000, IF($B$6+D5-1>65, 25000+1000*($B$6+D5-1-65), 0)), 0) -> 0 | H5: =IF(OR($B$6+D5-1<$B$9, $B$6+D5-1>110), 0, 600*12) -> 0 | I5: =IF(AND($B$6+D5-1>=60, $B$6+D5-1<=100), ($B$6+D5-1)*1000, 0) -> 0 | J5: =IF(AND($B$6+D5-1>=$B$9, $B$6+D5-1<$B$9+$B$3), IF($B$6+D5-1<($B$9+$B$3/2), 19000, 25000), 0) -> 0 | K5: 0 | L5: =IF(AND($B$6+D5-1>=$B$9,$B$6+D5-1<$B$9+$B$3),IF(AND(ISEVEN($B$6+D5-1), ISEVEN($B$9)),30000,IF(AND(ISODD($B$6+D5-1), ISODD($B$9)), 30000,0)), 0) -> 0
B6: ='Illustration Calculator'!B9 -> 40 | C6: 43 | D6: 4 | E6: Year 4 | F6: =IF(AND($B$6+D6-1>=$B$9, $B$6+D6-1<$B$9+$B$3), 15000, 0) -> 0 | G6: =IF($B$6+D6-1< 95, IF($B$6+D6-1=65, 25000, IF($B$6+D6-1>65, 25000+1000*($B$6+D6-1-65), 0)), 0) -> 0 | H6: =IF(OR($B$6+D6-1<$B$9, $B$6+D6-1>110), 0, 600*12) -> 0 | I6: =IF(AND($B$6+D6-1>=60, $B$6+D6-1<=100), ($B$6+D6-1)*1000, 0) -> 0 | J6: =IF(AND($B$6+D6-1>=$B$9, $B$6+D6-1<$B$9+$B$3), IF($B$6+D6-1<($B$9+$B$3/2), 19000, 25000), 0) -> 0 | K6: 0 | L6: =IF(AND($B$6+D6-1>=$B$9,$B$6+D6-1<$B$9+$B$3),IF(AND(ISEVEN($B$6+D6-1), ISEVEN($B$9)),30000,IF(AND(ISODD($B$6+D6-1), ISODD($B$9)), 30000,0)), 0) -> 0
C7: 44 | D7: 5 | E7: Year 5 | F7: =IF(AND($B$6+D7-1>=$B$9, $B$6+D7-1<$B$9+$B$3), 15000, 0) -> 0 | G7: =IF($B$6+D7-1< 95, IF($B$6+D7-1=65, 25000, IF($B$6+D7-1>65, 25000+1000*($B$6+D7-1-65), 0)), 0) -> 0 | H7: =IF(OR($B$6+D7-1<$B$9, $B$6+D7-1>110), 0, 600*12) -> 0 | I7: =IF(AND($B$6+D7-1>=60, $B$6+D7-1<=100), ($B$6+D7-1)*1000, 0) -> 0 | J7: =IF(AND($B$6+D7-1>=$B$9, $B$6+D7-1<$B$9+$B$3), IF($B$6+D7-1<($B$9+$B$3/2), 19000, 25000), 0) -> 0 | K7: 0 | L7: 0
B8: Age Payments begin | C8: 45 | D8: 6 | E8: Year 6 | F8: =IF(AND($B$6+D8-1>=$B$9, $B$6+D8-1<$B$9+$B$3), 15000, 0) -> 0 | G8: =IF($B$6+D8-1< 95, IF($B$6+D8-1=65, 25000, IF($B$6+D8-1>65, 25000+1000*($B$6+D8-1-65), 0)), 0) -> 0 | H8: =IF(OR($B$6+D8-1<$B$9, $B$6+D8-1>110), 0, 600*12) -> 0 | I8: =IF(AND($B$6+D8-1>=60, $B$6+D8-1<=100), ($B$6+D8-1)*1000, 0) -> 0 | J8: =IF(AND($B$6+D8-1>=$B$9, $B$6+D8-1<$B$9+$B$3), IF($B$6+D8-1<($B$9+$B$3/2), 19000, 25000), 0) -> 0 | K8: 0 | L8: 0
B9: ='Illustration Calculator'!B12+6 -> 47 | C9: 46 | D9: 7 | E9: Year 7 | F9: =IF(AND($B$6+D9-1>=$B$9, $B$6+D9-1<$B$9+$B$3), 15000, 0) -> 0 | G9: =IF($B$6+D9-1< 95, IF($B$6+D9-1=65, 25000, IF($B$6+D9-1>65, 25000+1000*($B$6+D9-1-65), 0)), 0) -> 0 | H9: =IF(OR($B$6+D9-1<$B$9, $B$6+D9-1>110), 0, 600*12) -> 0 | I9: =IF(AND($B$6+D9-1>=60, $B$6+D9-1<=100), ($B$6+D9-1)*1000, 0) -> 0 | J9: =IF(AND($B$6+D9-1>=$B$9, $B$6+D9-1<$B$9+$B$3), IF($B$6+D9-1<($B$9+$B$3/2), 19000, 25000), 0) -> 0 | K9: 0 | L9: 0
C10: 47 | D10: 8 | E10: Year 8 | F10: =IF(AND($B$6+D10-1>=$B$9, $B$6+D10-1<$B$9+$B$3), 15000, 0) -> 15000 | G10: =IF($B$6+D10-1< 95, IF($B$6+D10-1=65, 25000, IF($B$6+D10-1>65, 25000+1000*($B$6+D10-1-65), 0)), 0) -> 0 | H10: =IF(OR($B$6+D10-1<$B$9, $B$6+D10-1>110), 0, 600*12) -> 7200 | I10: =IF(AND($B$6+D10-1>=60, $B$6+D10-1<=100), ($B$6+D10-1)*1000, 0) -> 0 | J10: =IF(AND($B$6+D10-1>=$B$9, $B$6+D10-1<$B$9+$B$3), IF($B$6+D10-1<($B$9+$B$3/2), 19000, 25000), 0) -> 19000 | K10: 11111.11111 | L10: 30000
C11: 48 | D11: 9 | E11: Year 9 | F11: =IF(AND($B$6+D11-1>=$B$9, $B$6+D11-1<$B$9+$B$3), 15000, 0) -> 15000 | G11: =IF($B$6+D11-1< 95, IF($B$6+D11-1=65, 25000, IF($B$6+D11-1>65, 25000+1000*($B$6+D11-1-65), 0)), 0) -> 0 | H11: =IF(OR($B$6+D11-1<$B$9, $B$6+D11-1>110), 0, 600*12) -> 7200 | I11: =IF(AND($B$6+D11-1>=60, $B$6+D11-1<=100), ($B$6+D11-1)*1000, 0) -> 0 | J11: =IF(AND($B$6+D11-1>=$B$9, $B$6+D11-1<$B$9+$B$3), IF($B$6+D11-1<($B$9+$B$3/2), 19000, 25000), 0) -> 19000 | K11: 11111.11111 | L11: 0
C12: 49 | D12: 10 | E12: Year 10 | F12: =IF(AND($B$6+D12-1>=$B$9, $B$6+D12-1<$B$9+$B$3), 15000, 0) -> 15000 | G12: =IF($B$6+D12-1< 95, IF($B$6+D12-1=65, 25000, IF($B$6+D12-1>65, 25000+1000*($B$6+D12-1-65), 0)), 0) -> 0 | H12: =IF(OR($B$6+D12-1<$B$9, $B$6+D12-1>110), 0, 600*12) -> 7200 | I12: =IF(AND($B$6+D12-1>=60, $B$6+D12-1<=100), ($B$6+D12-1)*1000, 0) -> 0 | J12: =IF(AND($B$6+D12-1>=$B$9, $B$6+D12-1<$B$9+$B$3), IF($B$6+D12-1<($B$9+$B$3/2), 19000, 25000), 0) -> 19000 | K12: 11111.11111 | L12: 30000
C13: 50 | D13: 11 | E13: Year 11 | F13: =IF(AND($B$6+D13-1>=$B$9, $B$6+D13-1<$B$9+$B$3), 15000, 0) -> 15000 | G13: =IF($B$6+D13-1< 95, IF($B$6+D13-1=65, 25000, IF($B$6+D13-1>65, 25000+1000*($B$6+D13-1-65), 0)), 0) -> 0 | H13: =IF(OR($B$6+D13-1<$B$9, $B$6+D13-1>110), 0, 600*12) -> 7200 | I13: =IF(AND($B$6+D13-1>=60, $B$6+D13-1<=100), ($B$6+D13-1)*1000, 0) -> 0 | J13: =IF(AND($B$6+D13-1>=$B$9, $B$6+D13-1<$B$9+$B$3), IF($B$6+D13-1<($B$9+$B$3/2), 19000, 25000), 0) -> 19000 | K13: 11111.11111 | L13: 0
C14: 51 | D14: 12 | E14: Year 12 | F14: =IF(AND($B$6+D14-1>=$B$9, $B$6+D14-1<$B$9+$B$3), 15000, 0) -> 15000 | G14: =IF($B$6+D14-1< 95, IF($B$6+D14-1=65, 25000, IF($B$6+D14-1>65, 25000+1000*($B$6+D14-1-65), 0)), 0) -> 0 | H14: =IF(OR($B$6+D14-1<$B$9, $B$6+D14-1>110), 0, 600*12) -> 7200 | I14: =IF(AND($B$6+D14-1>=60, $B$6+D14-1<=100), ($B$6+D14-1)*1000, 0) -> 0 | J14: =IF(AND($B$6+D14-1>=$B$9, $B$6+D14-1<$B$9+$B$3), IF($B$6+D14-1<($B$9+$B$3/2), 19000, 25000), 0) -> 19000 | K14: 11111.11111 | L14: =IF(AND($B$6+D14-1>=$B$9,$B$6+D14-1<$B$9+$B$3),IF(AND(ISEVEN($B$6+D14-1), ISEVEN($B$9)),30000,IF(AND(ISODD($B$6+D14-1), ISODD($B$9)), 30000*2,0)), 0) -> 60000
C15: 52 | D15: 13 | E15: Year 13 | F15: =IF(AND($B$6+D15-1>=$B$9, $B$6+D15-1<$B$9+$B$3), 15000, 0) -> 15000 | G15: =IF($B$6+D15-1< 95, IF($B$6+D15-1=65, 25000, IF($B$6+D15-1>65, 25000+1000*($B$6+D15-1-65), 0)), 0) -> 0 | H15: =IF(OR($B$6+D15-1<$B$9, $B$6+D15-1>110), 0, 600*12) -> 7200 | I15: =IF(AND($B$6+D15-1>=60, $B$6+D15-1<=100), ($B$6+D15-1)*1000, 0) -> 0 | J15: =IF(AND($B$6+D15-1>=$B$9, $B$6+D15-1<$B$9+$B$3), IF($B$6+D15-1<($B$9+$B$3/2), 19000, 25000), 0) -> 25000 | K15: 11111.11111 | L15: 0
C16: 53 | D16: 14 | E16: Year 14 | F16: =IF(AND($B$6+D16-1>=$B$9, $B$6+D16-1<$B$9+$B$3), 15000, 0) -> 15000 | G16: =IF($B$6+D16-1< 95, IF($B$6+D16-1=65, 25000, IF($B$6+D16-1>65, 25000+1000*($B$6+D16-1-65), 0)), 0) -> 0 | H16: =IF(OR($B$6+D16-1<$B$9, $B$6+D16-1>110), 0, 600*12) -> 7200 | I16: =IF(AND($B$6+D16-1>=60, $B$6+D16-1<=100), ($B$6+D16-1)*1000, 0) -> 0 | J16: =IF(AND($B$6+D16-1>=$B$9, $B$6+D16-1<$B$9+$B$3), IF($B$6+D16-1<($B$9+$B$3/2), 19000, 25000), 0) -> 25000 | K16: 11111.11111 | L16: 30000
C17: 54 | D17: 15 | E17: Year 15 | F17: =IF(AND($B$6+D17-1>=$B$9, $B$6+D17-1<$B$9+$B$3), 15000, 0) -> 15000 | G17: =IF($B$6+D17-1< 95, IF($B$6+D17-1=65, 25000, IF($B$6+D17-1>65, 25000+1000*($B$6+D17-1-65), 0)), 0) -> 0 | H17: =IF(OR($B$6+D17-1<$B$9, $B$6+D17-1>110), 0, 600*12) -> 7200 | I17: =IF(AND($B$6+D17-1>=60, $B$6+D17-1<=100), ($B$6+D17-1)*1000, 0) -> 0 | J17: =IF(AND($B$6+D17-1>=$B$9, $B$6+D17-1<$B$9+$B$3), IF($B$6+D17-1<($B$9+$B$3/2), 19000, 25000), 0) -> 25000 | K17: 11111.11111 | L17: 0
C18: 55 | D18: 16 | E18: Year 16 | F18: =IF(AND($B$6+D18-1>=$B$9, $B$6+D18-1<$B$9+$B$3), 15000, 0) -> 15000 | G18: =IF($B$6+D18-1< 95, IF($B$6+D18-1=65, 25000, IF($B$6+D18-1>65, 25000+1000*($B$6+D18-1-65), 0)), 0) -> 0 | H18: =IF(OR($B$6+D18-1<$B$9, $B$6+D18-1>110), 0, 600*12) -> 7200 | I18: =IF(AND($B$6+D18-1>=60, $B$6+D18-1<=100), ($B$6+D18-1)*1000, 0) -> 0 | J18: =IF(AND($B$6+D18-1>=$B$9, $B$6+D18-1<$B$9+$B$3), IF($B$6+D18-1<($B$9+$B$3/2), 19000, 25000), 0) -> 25000 | K18: =IF(AND($B$6+D18-1>=$B$9, $B$6+D18-1<($B$9+$B$3)), 100000/($B$3-1), 0) -> 11111.11111 | L18: 30000
C19: 56 | D19: 17 | E19: Year 17 | F19: =IF(AND($B$6+D19-1>=$B$9, $B$6+D19-1<$B$9+$B$3), 15000, 0) -> 15000 | G19: =IF($B$6+D19-1< 95, IF($B$6+D19-1=65, 25000, IF($B$6+D19-1>65, 25000+1000*($B$6+D19-1-65), 0)), 0) -> 0 | H19: =IF(OR($B$6+D19-1<$B$9, $B$6+D19-1>110), 0, 600*12) -> 7200 | I19: =IF(AND($B$6+D19-1>=60, $B$6+D19-1<=100), ($B$6+D19-1)*1000, 0) -> 0 | J19: =IF(AND($B$6+D19-1>=$B$9, $B$6+D19-1<$B$9+$B$3), IF($B$6+D19-1<($B$9+$B$3/2), 19000, 25000), 0) -> 25000 | K19: =IF(AND($B$6+D19-1>=$B$9, $B$6+D19-1<($B$9+$B$3)), 100000/($B$3-1), 0) -> 11111.11111 | L19: 0
C20: 57 | D20: 18 | E20: Year 18 | F20: =IF(AND($B$6+D20-1>=$B$9, $B$6+D20-1<$B$9+$B$3), 15000, 0) -> 0 | G20: =IF($B$6+D20-1< 95, IF($B$6+D20-1=65, 25000, IF($B$6+D20-1>65, 25000+1000*($B$6+D20-1-65), 0)), 0) -> 0 | H20: =IF(OR($B$6+D20-1<$B$9, $B$6+D20-1>110), 0, 600*12) -> 7200 | I20: =IF(AND($B$6+D20-1>=60, $B$6+D20-1<=100), ($B$6+D20-1)*1000, 0) -> 0 | J20: =IF(AND($B$6+D20-1>=$B$9, $B$6+D20-1<$B$9+$B$3), IF($B$6+D20-1<($B$9+$B$3/2), 19000, 25000), 0) -> 0 | K20: 0 | L20: 0
C21: 58 | D21: 19 | E21: Year 19 | F21: =IF(AND($B$6+D21-1>=$B$9, $B$6+D21-1<$B$9+$B$3), 15000, 0) -> 0 | G21: =IF($B$6+D21-1< 95, IF($B$6+D21-1=65, 25000, IF($B$6+D21-1>65, 25000+1000*($B$6+D21-1-65), 0)), 0) -> 0 | H21: =IF(OR($B$6+D21-1<$B$9, $B$6+D21-1>110), 0, 600*12) -> 7200 | I21: =IF(AND($B$6+D21-1>=60, $B$6+D21-1<=100), ($B$6+D21-1)*1000, 0) -> 0 | J21: =IF(AND($B$6+D21-1>=$B$9, $B$6+D21-1<$B$9+$B$3), IF($B$6+D21-1<($B$9+$B$3/2), 19000, 25000), 0) -> 0 | K21: 0 | L21: 0
C22: 59 | D22: 20 | E22: Year 20 | F22: =IF(AND($B$6+D22-1>=$B$9, $B$6+D22-1<$B$9+$B$3), 15000, 0) -> 0 | G22: =IF($B$6+D22-1< 95, IF($B$6+D22-1=65, 25000, IF($B$6+D22-1>65, 25000+1000*($B$6+D22-1-65), 0)), 0) -> 0 | H22: =IF(OR($B$6+D22-1<$B$9, $B$6+D22-1>110), 0, 600*12) -> 7200 | I22: =IF(AND($B$6+D22-1>=60, $B$6+D22-1<=100), ($B$6+D22-1)*1000, 0) -> 0 | J22: =IF(AND($B$6+D22-1>=$B$9, $B$6+D22-1<$B$9+$B$3), IF($B$6+D22-1<($B$9+$B$3/2), 19000, 25000), 0) -> 0 | K22: 0 | L22: 0
C23: 60 | D23: 21 | E23: Year 21 | F23: =IF(AND($B$6+D23-1>=$B$9, $B$6+D23-1<$B$9+$B$3), 15000, 0) -> 0 | G23: =IF($B$6+D23-1< 95, IF($B$6+D23-1=65, 25000, IF($B$6+D23-1>65, 25000+1000*($B$6+D23-1-65), 0)), 0) -> 0 | H23: =IF(OR($B$6+D23-1<$B$9, $B$6+D23-1>110), 0, 600*12) -> 7200 | I23: =IF(AND($B$6+D23-1>=60, $B$6+D23-1<=100), ($B$6+D23-1)*1000, 0) -> 60000 | J23: =IF(AND($B$6+D23-1>=$B$9, $B$6+D23-1<$B$9+$B$3), IF($B$6+D23-1<($B$9+$B$3/2), 19000, 25000), 0) -> 0 | K23: 0 | L23: 0
C24: 61 | D24: 22 | E24: Year 22 | F24: =IF(AND($B$6+D24-1>=$B$9, $B$6+D24-1<$B$9+$B$3), 15000, 0) -> 0 | G24: =IF($B$6+D24-1< 95, IF($B$6+D24-1=65, 25000, IF($B$6+D24-1>65, 25000+1000*($B$6+D24-1-65), 0)), 0) -> 0 | H24: =IF(OR($B$6+D24-1<$B$9, $B$6+D24-1>110), 0, 600*12) -> 7200 | I24: =IF(AND($B$6+D24-1>=60, $B$6+D24-1<=100), ($B$6+D24-1)*1000, 0) -> 61000 | J24: =IF(AND($B$6+D24-1>=$B$9, $B$6+D24-1<$B$9+$B$3), IF($B$6+D24-1<($B$9+$B$3/2), 19000, 25000), 0) -> 0 | K24: 0 | L24: 0
C25: 62 | D25: 23 | E25: Year 23 | F25: =IF(AND($B$6+D25-1>=$B$9, $B$6+D25-1<$B$9+$B$3), 15000, 0) -> 0 | G25: =IF($B$6+D25-1< 95, IF($B$6+D25-1=65, 25000, IF($B$6+D25-1>65, 25000+1000*($B$6+D25-1-65), 0)), 0) -> 0 | H25: =IF(OR($B$6+D25-1<$B$9, $B$6+D25-1>110), 0, 600*12) -> 7200 | I25: =IF(AND($B$6+D25-1>=60, $B$6+D25-1<=100), ($B$6+D25-1)*1000, 0) -> 62000 | J25: =IF(AND($B$6+D25-1>=$B$9, $B$6+D25-1<$B$9+$B$3), IF($B$6+D25-1<($B$9+$B$3/2), 19000, 25000), 0) -> 0 | K25: 0 | L25: 0
C26: 63 | D26: 24 | E26: Year 24 | F26: =IF(AND($B$6+D26-1>=$B$9, $B$6+D26-1<$B$9+$B$3), 15000, 0) -> 0 | G26: =IF($B$6+D26-1< 95, IF($B$6+D26-1=65, 25000, IF($B$6+D26-1>65, 25000+1000*($B$6+D26-1-65), 0)), 0) -> 0 | H26: =IF(OR($B$6+D26-1<$B$9, $B$6+D26-1>110), 0, 600*12) -> 7200 | I26: =IF(AND($B$6+D26-1>=60, $B$6+D26-1<=100), ($B$6+D26-1)*1000, 0) -> 63000 | J26: =IF(AND($B$6+D26-1>=$B$9, $B$6+D26-1<$B$9+$B$3), IF($B$6+D26-1<($B$9+$B$3/2), 19000, 25000), 0) -> 0 | K26: 0 | L26: 0
C27: 64 | D27: 25 | E27: Year 25 | F27: =IF(AND($B$6+D27-1>=$B$9, $B$6+D27-1<$B$9+$B$3), 15000, 0) -> 0 | G27: =IF($B$6+D27-1< 95, IF($B$6+D27-1=65, 25000, IF($B$6+D27-1>65, 25000+1000*($B$6+D27-1-65), 0)), 0) -> 0 | H27: =IF(OR($B$6+D27-1<$B$9, $B$6+D27-1>110), 0, 600*12) -> 7200 | I27: =IF(AND($B$6+D27-1>=60, $B$6+D27-1<=100), ($B$6+D27-1)*1000, 0) -> 64000 | J27: =IF(AND($B$6+D27-1>=$B$9, $B$6+D27-1<$B$9+$B$3), IF($B$6+D27-1<($B$9+$B$3/2), 19000, 25000), 0) -> 0 | K27: 0 | L27: 0
C28: 65 | D28: 26 | E28: Year 26 | F28: =IF(AND($B$6+D28-1>=$B$9, $B$6+D28-1<$B$9+$B$3), 15000, 0) -> 0 | G28: =IF($B$6+D28-1< 95, IF($B$6+D28-1=65, 25000, IF($B$6+D28-1>65, 25000+1000*($B$6+D28-1-65), 0)), 0) -> 25000 | H28: =IF(OR($B$6+D28-1<$B$9, $B$6+D28-1>110), 0, 600*12) -> 7200 | I28: =IF(AND($B$6+D28-1>=60, $B$6+D28-1<=100), ($B$6+D28-1)*1000, 0) -> 65000 | J28: =IF(AND($B$6+D28-1>=$B$9, $B$6+D28-1<$B$9+$B$3), IF($B$6+D28-1<($B$9+$B$3/2), 19000, 25000), 0) -> 0 | K28: 0 | L28: 0
C29: 66 | D29: 27 | E29: Year 27 | F29: =IF(AND($B$6+D29-1>=$B$9, $B$6+D29-1<$B$9+$B$3), 15000, 0) -> 0 | G29: =IF($B$6+D29-1< 95, IF($B$6+D29-1=65, 25000, IF($B$6+D29-1>65, 25000+1000*($B$6+D29-1-65), 0)), 0) -> 26000 | H29: =IF(OR($B$6+D29-1<$B$9, $B$6+D29-1>110), 0, 600*12) -> 7200 | I29: =IF(AND($B$6+D29-1>=60, $B$6+D29-1<=100), ($B$6+D29-1)*1000, 0) -> 66000 | J29: =IF(AND($B$6+D29-1>=$B$9, $B$6+D29-1<$B$9+$B$3), IF($B$6+D29-1<($B$9+$B$3/2), 19000, 25000), 0) -> 0 | K29: 0 | L29: 0
C30: 67 | D30: 28 | E30: Year 28 | F30: =IF(AND($B$6+D30-1>=$B$9, $B$6+D30-1<$B$9+$B$3), 15000, 0) -> 0 | G30: =IF($B$6+D30-1< 95, IF($B$6+D30-1=65, 25000, IF($B$6+D30-1>65, 25000+1000*($B$6+D30-1-65), 0)), 0) -> 27000 | H30: =IF(OR($B$6+D30-1<$B$9, $B$6+D30-1>110), 0, 600*12) -> 7200 | I30: =IF(AND($B$6+D30-1>=60, $B$6+D30-1<=100), ($B$6+D30-1)*1000, 0) -> 67000 | J30: =IF(AND($B$6+D30-1>=$B$9, $B$6+D30-1<$B$9+$B$3), IF($B$6+D30-1<($B$9+$B$3/2), 19000, 25000), 0) -> 0 | K30: 0 | L30: 0
C31: 68 | D31: 29 | E31: Year 29 | F31: =IF(AND($B$6+D31-1>=$B$9, $B$6+D31-1<$B$9+$B$3), 15000, 0) -> 0 | G31: =IF($B$6+D31-1< 95, IF($B$6+D31-1=65, 25000, IF($B$6+D31-1>65, 25000+1000*($B$6+D31-1-65), 0)), 0) -> 28000 | H31: =IF(OR($B$6+D31-1<$B$9, $B$6+D31-1>110), 0, 600*12) -> 7200 | I31: =IF(AND($B$6+D31-1>=60, $B$6+D31-1<=100), ($B$6+D31-1)*1000, 0) -> 68000 | J31: =IF(AND($B$6+D31-1>=$B$9, $B$6+D31-1<$B$9+$B$3), IF($B$6+D31-1<($B$9+$B$3/2), 19000, 25000), 0) -> 0 | K31: 0 | L31: 0
C32: 69 | D32: 30 | E32: Year 30 | F32: =IF(AND($B$6+D32-1>=$B$9, $B$6+D32-1<$B$9+$B$3), 15000, 0) -> 0 | G32: =IF($B$6+D32-1< 95, IF($B$6+D32-1=65, 25000, IF($B$6+D32-1>65, 25000+1000*($B$6+D32-1-65), 0)), 0) -> 29000 | H32: =IF(OR($B$6+D32-1<$B$9, $B$6+D32-1>110), 0, 600*12) -> 7200 | I32: =IF(AND($B$6+D32-1>=60, $B$6+D32-1<=100), ($B$6+D32-1)*1000, 0) -> 69000 | J32: =IF(AND($B$6+D32-1>=$B$9, $B$6+D32-1<$B$9+$B$3), IF($B$6+D32-1<($B$9+$B$3/2), 19000, 25000), 0) -> 0 | K32: 0 | L32: 0
C33: 70 | D33: 31 | E33: Year 31 | F33: =IF(AND($B$6+D33-1>=$B$9, $B$6+D33-1<$B$9+$B$3), 15000, 0) -> 0 | G33: =IF($B$6+D33-1< 95, IF($B$6+D33-1=65, 25000, IF($B$6+D33-1>65, 25000+1000*($B$6+D33-1-65), 0)), 0) -> 30000 | H33: =IF(OR($B$6+D33-1<$B$9, $B$6+D33-1>110), 0, 600*12) -> 7200 | I33: =IF(AND($B$6+D33-1>=60, $B$6+D33-1<=100), ($B$6+D33-1)*1000, 0) -> 70000 | J33: =IF(AND($B$6+D33-1>=$B$9, $B$6+D33-1<$B$9+$B$3), IF($B$6+D33-1<($B$9+$B$3/2), 19000, 25000), 0) -> 0 | K33: 0 | L33: 0
C34: 71 | D34: 32 | E34: Year 32 | F34: =IF(AND($B$6+D34-1>=$B$9, $B$6+D34-1<$B$9+$B$3), 15000, 0) -> 0 | G34: =IF($B$6+D34-1< 95, IF($B$6+D34-1=65, 25000, IF($B$6+D34-1>65, 25000+1000*($B$6+D34-1-65), 0)), 0) -> 31000 | H34: =IF(OR($B$6+D34-1<$B$9, $B$6+D34-1>110), 0, 600*12) -> 7200 | I34: =IF(AND($B$6+D34-1>=60, $B$6+D34-1<=100), ($B$6+D34-1)*1000, 0) -> 71000 | J34: =IF(AND($B$6+D34-1>=$B$9, $B$6+D34-1<$B$9+$B$3), IF($B$6+D34-1<($B$9+$B$3/2), 19000, 25000), 0) -> 0 | K34: 0 | L34: 0
C35: 72 | D35: 33 | E35: Year 33 | F35: =IF(AND($B$6+D35-1>=$B$9, $B$6+D35-1<$B$9+$B$3), 15000, 0) -> 0 | G35: =IF($B$6+D35-1< 95, IF($B$6+D35-1=65, 25000, IF($B$6+D35-1>65, 25000+1000*($B$6+D35-1-65), 0)), 0) -> 32000 | H35: =IF(OR($B$6+D35-1<$B$9, $B$6+D35-1>110), 0, 600*12) -> 7200 | I35: =IF(AND($B$6+D35-1>=60, $B$6+D35-1<=100), ($B$6+D35-1)*1000, 0) -> 72000 | J35: =IF(AND($B$6+D35-1>=$B$9, $B$6+D35-1<$B$9+$B$3), IF($B$6+D35-1<($B$9+$B$3/2), 19000, 25000), 0) -> 0 | K35: 0 | L35: 0
C36: 73 | D36: 34 | E36: Year 34 | F36: =IF(AND($B$6+D36-1>=$B$9, $B$6+D36-1<$B$9+$B$3), 15000, 0) -> 0 | G36: =IF($B$6+D36-1< 95, IF($B$6+D36-1=65, 25000, IF($B$6+D36-1>65, 25000+1000*($B$6+D36-1-65), 0)), 0) -> 33000 | H36: =IF(OR($B$6+D36-1<$B$9, $B$6+D36-1>110), 0, 600*12) -> 7200 | I36: =IF(AND($B$6+D36-1>=60, $B$6+D36-1<=100), ($B$6+D36-1)*1000, 0) -> 73000 | J36: =IF(AND($B$6+D36-1>=$B$9, $B$6+D36-1<$B$9+$B$3), IF($B$6+D36-1<($B$9+$B$3/2), 19000, 25000), 0) -> 0 | K36: 0 | L36: 0
C37: 74 | D37: 35 | E37: Year 35 | F37: =IF(AND($B$6+D37-1>=$B$9, $B$6+D37-1<$B$9+$B$3), 15000, 0) -> 0 | G37: =IF($B$6+D37-1< 95, IF($B$6+D37-1=65, 25000, IF($B$6+D37-1>65, 25000+1000*($B$6+D37-1-65), 0)), 0) -> 34000 | H37: =IF(OR($B$6+D37-1<$B$9, $B$6+D37-1>110), 0, 600*12) -> 7200 | I37: =IF(AND($B$6+D37-1>=60, $B$6+D37-1<=100), ($B$6+D37-1)*1000, 0) -> 74000 | J37: =IF(AND($B$6+D37-1>=$B$9, $B$6+D37-1<$B$9+$B$3), IF($B$6+D37-1<($B$9+$B$3/2), 19000, 25000), 0) -> 0 | K37: 0 | L37: 0
C38: 75 | D38: 36 | E38: Year 36 | F38: =IF(AND($B$6+D38-1>=$B$9, $B$6+D38-1<$B$9+$B$3), 15000, 0) -> 0 | G38: =IF($B$6+D38-1< 95, IF($B$6+D38-1=65, 25000, IF($B$6+D38-1>65, 25000+1000*($B$6+D38-1-65), 0)), 0) -> 35000 | H38: =IF(OR($B$6+D38-1<$B$9, $B$6+D38-1>110), 0, 600*12) -> 7200 | I38: =IF(AND($B$6+D38-1>=60, $B$6+D38-1<=100), ($B$6+D38-1)*1000, 0) -> 75000 | J38: =IF(AND($B$6+D38-1>=$B$9, $B$6+D38-1<$B$9+$B$3), IF($B$6+D38-1<($B$9+$B$3/2), 19000, 25000), 0) -> 0 | K38: 0 | L38: 0
C39: 76 | D39: 37 | E39: Year 37 | F39: =IF(AND($B$6+D39-1>=$B$9, $B$6+D39-1<$B$9+$B$3), 15000, 0) -> 0 | G39: =IF($B$6+D39-1< 95, IF($B$6+D39-1=65, 25000, IF($B$6+D39-1>65, 25000+1000*($B$6+D39-1-65), 0)), 0) -> 36000 | H39: =IF(OR($B$6+D39-1<$B$9, $B$6+D39-1>110), 0, 600*12) -> 7200 | I39: =IF(AND($B$6+D39-1>=60, $B$6+D39-1<=100), ($B$6+D39-1)*1000, 0) -> 76000 | J39: =IF(AND($B$6+D39-1>=$B$9, $B$6+D39-1<$B$9+$B$3), IF($B$6+D39-1<($B$9+$B$3/2), 19000, 25000), 0) -> 0 | K39: 0 | L39: 0
C40: 77 | D40: 38 | E40: Year 38 | F40: =IF(AND($B$6+D40-1>=$B$9, $B$6+D40-1<$B$9+$B$3), 15000, 0) -> 0 | G40: =IF($B$6+D40-1< 95, IF($B$6+D40-1=65, 25000, IF($B$6+D40-1>65, 25000+1000*($B$6+D40-1-65), 0)), 0) -> 37000 | H40: =IF(OR($B$6+D40-1<$B$9, $B$6+D40-1>110), 0, 600*12) -> 7200 | I40: =IF(AND($B$6+D40-1>=60, $B$6+D40-1<=100), ($B$6+D40-1)*1000, 0) -> 77000 | J40: =IF(AND($B$6+D40-1>=$B$9, $B$6+D40-1<$B$9+$B$3), IF($B$6+D40-1<($B$9+$B$3/2), 19000, 25000), 0) -> 0 | K40: 0 | L40: 0
C41: 78 | D41: 39 | E41: Year 39 | F41: =IF(AND($B$6+D41-1>=$B$9, $B$6+D41-1<$B$9+$B$3), 15000, 0) -> 0 | G41: =IF($B$6+D41-1< 95, IF($B$6+D41-1=65, 25000, IF($B$6+D41-1>65, 25000+1000*($B$6+D41-1-65), 0)), 0) -> 38000 | H41: =IF(OR($B$6+D41-1<$B$9, $B$6+D41-1>110), 0, 600*12) -> 7200 | I41: =IF(AND($B$6+D41-1>=60, $B$6+D41-1<=100), ($B$6+D41-1)*1000, 0) -> 78000 | J41: =IF(AND($B$6+D41-1>=$B$9, $B$6+D41-1<$B$9+$B$3), IF($B$6+D41-1<($B$9+$B$3/2), 19000, 25000), 0) -> 0 | K41: 0 | L41: 0
C42: 79 | D42: 40 | E42: Year 40 | F42: =IF(AND($B$6+D42-1>=$B$9, $B$6+D42-1<$B$9+$B$3), 15000, 0) -> 0 | G42: =IF($B$6+D42-1< 95, IF($B$6+D42-1=65, 25000, IF($B$6+D42-1>65, 25000+1000*($B$6+D42-1-65), 0)), 0) -> 39000 | H42: =IF(OR($B$6+D42-1<$B$9, $B$6+D42-1>110), 0, 600*12) -> 7200 | I42: =IF(AND($B$6+D42-1>=60, $B$6+D42-1<=100), ($B$6+D42-1)*1000, 0) -> 79000 | J42: =IF(AND($B$6+D42-1>=$B$9, $B$6+D42-1<$B$9+$B$3), IF($B$6+D42-1<($B$9+$B$3/2), 19000, 25000), 0) -> 0 | K42: 0 | L42: 0
C43: 80 | D43: 41 | E43: Year 41 | F43: =IF(AND($B$6+D43-1>=$B$9, $B$6+D43-1<$B$9+$B$3), 15000, 0) -> 0 | G43: =IF($B$6+D43-1< 95, IF($B$6+D43-1=65, 25000, IF($B$6+D43-1>65, 25000+1000*($B$6+D43-1-65), 0)), 0) -> 40000 | H43: =IF(OR($B$6+D43-1<$B$9, $B$6+D43-1>110), 0, 600*12) -> 7200 | I43: =IF(AND($B$6+D43-1>=60, $B$6+D43-1<=100), ($B$6+D43-1)*1000, 0) -> 80000 | J43: =IF(AND($B$6+D43-1>=$B$9, $B$6+D43-1<$B$9+$B$3), IF($B$6+D43-1<($B$9+$B$3/2), 19000, 25000), 0) -> 0 | K43: 0 | L43: 0
C44: 81 | D44: 42 | E44: Year 42 | F44: =IF(AND($B$6+D44-1>=$B$9, $B$6+D44-1<$B$9+$B$3), 15000, 0) -> 0 | G44: =IF($B$6+D44-1< 95, IF($B$6+D44-1=65, 25000, IF($B$6+D44-1>65, 25000+1000*($B$6+D44-1-65), 0)), 0) -> 41000 | H44: =IF(OR($B$6+D44-1<$B$9, $B$6+D44-1>110), 0, 600*12) -> 7200 | I44: =IF(AND($B$6+D44-1>=60, $B$6+D44-1<=100), ($B$6+D44-1)*1000, 0) -> 81000 | J44: =IF(AND($B$6+D44-1>=$B$9, $B$6+D44-1<$B$9+$B$3), IF($B$6+D44-1<($B$9+$B$3/2), 19000, 25000), 0) -> 0 | K44: 0 | L44: 0
C45: 82 | D45: 43 | E45: Year 43 | F45: =IF(AND($B$6+D45-1>=$B$9, $B$6+D45-1<$B$9+$B$3), 15000, 0) -> 0 | G45: =IF($B$6+D45-1< 95, IF($B$6+D45-1=65, 25000, IF($B$6+D45-1>65, 25000+1000*($B$6+D45-1-65), 0)), 0) -> 42000 | H45: =IF(OR($B$6+D45-1<$B$9, $B$6+D45-1>110), 0, 600*12) -> 7200 | I45: =IF(AND($B$6+D45-1>=60, $B$6+D45-1<=100), ($B$6+D45-1)*1000, 0) -> 82000 | J45: =IF(AND($B$6+D45-1>=$B$9, $B$6+D45-1<$B$9+$B$3), IF($B$6+D45-1<($B$9+$B$3/2), 19000, 25000), 0) -> 0 | K45: 0 | L45: 0
C46: 83 | D46: 44 | E46: Year 44 | F46: =IF(AND($B$6+D46-1>=$B$9, $B$6+D46-1<$B$9+$B$3), 15000, 0) -> 0 | G46: =IF($B$6+D46-1< 95, IF($B$6+D46-1=65, 25000, IF($B$6+D46-1>65, 25000+1000*($B$6+D46-1-65), 0)), 0) -> 43000 | H46: =IF(OR($B$6+D46-1<$B$9, $B$6+D46-1>110), 0, 600*12) -> 7200 | I46: =IF(AND($B$6+D46-1>=60, $B$6+D46-1<=100), ($B$6+D46-1)*1000, 0) -> 83000 | J46: =IF(AND($B$6+D46-1>=$B$9, $B$6+D46-1<$B$9+$B$3), IF($B$6+D46-1<($B$9+$B$3/2), 19000, 25000), 0) -> 0 | K46: 0 | L46: 0
C47: 84 | D47: 45 | E47: Year 45 | F47: =IF(AND($B$6+D47-1>=$B$9, $B$6+D47-1<$B$9+$B$3), 15000, 0) -> 0 | G47: =IF($B$6+D47-1< 95, IF($B$6+D47-1=65, 25000, IF($B$6+D47-1>65, 25000+1000*($B$6+D47-1-65), 0)), 0) -> 44000 | H47: =IF(OR($B$6+D47-1<$B$9, $B$6+D47-1>110), 0, 600*12) -> 7200 | I47: =IF(AND($B$6+D47-1>=60, $B$6+D47-1<=100), ($B$6+D47-1)*1000, 0) -> 84000 | J47: =IF(AND($B$6+D47-1>=$B$9, $B$6+D47-1<$B$9+$B$3), IF($B$6+D47-1<($B$9+$B$3/2), 19000, 25000), 0) -> 0 | K47: 0 | L47: 0
C48: 85 | D48: 46 | E48: Year 46 | F48: =IF(AND($B$6+D48-1>=$B$9, $B$6+D48-1<$B$9+$B$3), 15000, 0) -> 0 | G48: =IF($B$6+D48-1< 95, IF($B$6+D48-1=65, 25000, IF($B$6+D48-1>65, 25000+1000*($B$6+D48-1-65), 0)), 0) -> 45000 | H48: =IF(OR($B$6+D48-1<$B$9, $B$6+D48-1>110), 0, 600*12) -> 7200 | I48: =IF(AND($B$6+D48-1>=60, $B$6+D48-1<=100), ($B$6+D48-1)*1000, 0) -> 85000 | J48: =IF(AND($B$6+D48-1>=$B$9, $B$6+D48-1<$B$9+$B$3), IF($B$6+D48-1<($B$9+$B$3/2), 19000, 25000), 0) -> 0 | K48: 0 | L48: 0
C49: 86 | D49: 47 | E49: Year 47 | F49: =IF(AND($B$6+D49-1>=$B$9, $B$6+D49-1<$B$9+$B$3), 15000, 0) -> 0 | G49: =IF($B$6+D49-1< 95, IF($B$6+D49-1=65, 25000, IF($B$6+D49-1>65, 25000+1000*($B$6+D49-1-65), 0)), 0) -> 46000 | H49: =IF(OR($B$6+D49-1<$B$9, $B$6+D49-1>110), 0, 600*12) -> 7200 | I49: =IF(AND($B$6+D49-1>=60, $B$6+D49-1<=100), ($B$6+D49-1)*1000, 0) -> 86000 | J49: =IF(AND($B$6+D49-1>=$B$9, $B$6+D49-1<$B$9+$B$3), IF($B$6+D49-1<($B$9+$B$3/2), 19000, 25000), 0) -> 0 | K49: 0 | L49: 0
C50: 87 | D50: 48 | E50: Year 48 | F50: =IF(AND($B$6+D50-1>=$B$9, $B$6+D50-1<$B$9+$B$3), 15000, 0) -> 0 | G50: =IF($B$6+D50-1< 95, IF($B$6+D50-1=65, 25000, IF($B$6+D50-1>65, 25000+1000*($B$6+D50-1-65), 0)), 0) -> 47000 | H50: =IF(OR($B$6+D50-1<$B$9, $B$6+D50-1>110), 0, 600*12) -> 7200 | I50: =IF(AND($B$6+D50-1>=60, $B$6+D50-1<=100), ($B$6+D50-1)*1000, 0) -> 87000 | J50: =IF(AND($B$6+D50-1>=$B$9, $B$6+D50-1<$B$9+$B$3), IF($B$6+D50-1<($B$9+$B$3/2), 19000, 25000), 0) -> 0 | K50: 0 | L50: 0
C51: 88 | D51: 49 | E51: Year 49 | F51: =IF(AND($B$6+D51-1>=$B$9, $B$6+D51-1<$B$9+$B$3), 15000, 0) -> 0 | G51: =IF($B$6+D51-1< 95, IF($B$6+D51-1=65, 25000, IF($B$6+D51-1>65, 25000+1000*($B$6+D51-1-65), 0)), 0) -> 48000 | H51: =IF(OR($B$6+D51-1<$B$9, $B$6+D51-1>110), 0, 600*12) -> 7200 | I51: =IF(AND($B$6+D51-1>=60, $B$6+D51-1<=100), ($B$6+D51-1)*1000, 0) -> 88000 | J51: =IF(AND($B$6+D51-1>=$B$9, $B$6+D51-1<$B$9+$B$3), IF($B$6+D51-1<($B$9+$B$3/2), 19000, 25000), 0) -> 0 | K51: 0 | L51: 0
C52: 89 | D52: 50 | E52: Year 50 | F52: =IF(AND($B$6+D52-1>=$B$9, $B$6+D52-1<$B$9+$B$3), 15000, 0) -> 0 | G52: =IF($B$6+D52-1< 95, IF($B$6+D52-1=65, 25000, IF($B$6+D52-1>65, 25000+1000*($B$6+D52-1-65), 0)), 0) -> 49000 | H52: =IF(OR($B$6+D52-1<$B$9, $B$6+D52-1>110), 0, 600*12) -> 7200 | I52: =IF(AND($B$6+D52-1>=60, $B$6+D52-1<=100), ($B$6+D52-1)*1000, 0) -> 89000 | J52: =IF(AND($B$6+D52-1>=$B$9, $B$6+D52-1<$B$9+$B$3), IF($B$6+D52-1<($B$9+$B$3/2), 19000, 25000), 0) -> 0 | K52: 0 | L52: 0
C53: 90 | D53: 51 | E53: Year 51 | F53: =IF(AND($B$6+D53-1>=$B$9, $B$6+D53-1<$B$9+$B$3), 15000, 0) -> 0 | G53: =IF($B$6+D53-1< 95, IF($B$6+D53-1=65, 25000, IF($B$6+D53-1>65, 25000+1000*($B$6+D53-1-65), 0)), 0) -> 50000 | H53: =IF(OR($B$6+D53-1<$B$9, $B$6+D53-1>110), 0, 600*12) -> 7200 | I53: =IF(AND($B$6+D53-1>=60, $B$6+D53-1<=100), ($B$6+D53-1)*1000, 0) -> 90000 | J53: =IF(AND($B$6+D53-1>=$B$9, $B$6+D53-1<$B$9+$B$3), IF($B$6+D53-1<($B$9+$B$3/2), 19000, 25000), 0) -> 0 | K53: 0 | L53: 0
C54: 91 | D54: 52 | E54: Year 52 | F54: =IF(AND($B$6+D54-1>=$B$9, $B$6+D54-1<$B$9+$B$3), 15000, 0) -> 0 | G54: =IF($B$6+D54-1< 95, IF($B$6+D54-1=65, 25000, IF($B$6+D54-1>65, 25000+1000*($B$6+D54-1-65), 0)), 0) -> 51000 | H54: =IF(OR($B$6+D54-1<$B$9, $B$6+D54-1>110), 0, 600*12) -> 7200 | I54: =IF(AND($B$6+D54-1>=60, $B$6+D54-1<=100), ($B$6+D54-1)*1000, 0) -> 91000 | J54: =IF(AND($B$6+D54-1>=$B$9, $B$6+D54-1<$B$9+$B$3), IF($B$6+D54-1<($B$9+$B$3/2), 19000, 25000), 0) -> 0 | K54: 0 | L54: 0
C55: 92 | D55: 53 | E55: Year 53 | F55: =IF(AND($B$6+D55-1>=$B$9, $B$6+D55-1<$B$9+$B$3), 15000, 0) -> 0 | G55: =IF($B$6+D55-1< 95, IF($B$6+D55-1=65, 25000, IF($B$6+D55-1>65, 25000+1000*($B$6+D55-1-65), 0)), 0) -> 52000 | H55: =IF(OR($B$6+D55-1<$B$9, $B$6+D55-1>110), 0, 600*12) -> 7200 | I55: =IF(AND($B$6+D55-1>=60, $B$6+D55-1<=100), ($B$6+D55-1)*1000, 0) -> 92000 | J55: =IF(AND($B$6+D55-1>=$B$9, $B$6+D55-1<$B$9+$B$3), IF($B$6+D55-1<($B$9+$B$3/2), 19000, 25000), 0) -> 0 | K55: 0 | L55: 0
C56: 93 | D56: 54 | E56: Year 54 | F56: =IF(AND($B$6+D56-1>=$B$9, $B$6+D56-1<$B$9+$B$3), 15000, 0) -> 0 | G56: =IF($B$6+D56-1< 95, IF($B$6+D56-1=65, 25000, IF($B$6+D56-1>65, 25000+1000*($B$6+D56-1-65), 0)), 0) -> 53000 | H56: =IF(OR($B$6+D56-1<$B$9, $B$6+D56-1>110), 0, 600*12) -> 7200 | I56: =IF(AND($B$6+D56-1>=60, $B$6+D56-1<=100), ($B$6+D56-1)*1000, 0) -> 93000 | J56: =IF(AND($B$6+D56-1>=$B$9, $B$6+D56-1<$B$9+$B$3), IF($B$6+D56-1<($B$9+$B$3/2), 19000, 25000), 0) -> 0 | K56: 0 | L56: 0
C57: 94 | D57: 54 | E57: Year 55 | F57: =IF(AND($B$6+D57-1>=$B$9, $B$6+D57-1<$B$9+$B$3), 15000, 0) -> 0 | G57: =IF($B$6+D57-1< 95, IF($B$6+D57-1=65, 25000, IF($B$6+D57-1>65, 25000+1000*($B$6+D57-1-65), 0)), 0) -> 53000 | H57: =IF(OR($B$6+D57-1<$B$9, $B$6+D57-1>110), 0, 600*12) -> 7200 | I57: =IF(AND($B$6+D57-1>=60, $B$6+D57-1<=100), ($B$6+D57-1)*1000, 0) -> 93000 | J57: =IF(AND($B$6+D57-1>=$B$9, $B$6+D57-1<$B$9+$B$3), IF($B$6+D57-1<($B$9+$B$3/2), 19000, 25000), 0) -> 0 | K57: 0 | L57: 0
C58: 95 | D58: 56 | E58: Year 56 | F58: =IF(AND($B$6+D58-1>=$B$9, $B$6+D58-1<$B$9+$B$3), 15000, 0) -> 0 | G58: =IF($B$6+D58-1< 95, IF($B$6+D58-1=65, 25000, IF($B$6+D58-1>65, 25000+1000*($B$6+D58-1-65), 0)), 0) -> 0 | H58: =IF(OR($B$6+D58-1<$B$9, $B$6+D58-1>110), 0, 600*12) -> 7200 | I58: =IF(AND($B$6+D58-1>=60, $B$6+D58-1<=100), ($B$6+D58-1)*1000, 0) -> 95000 | J58: =IF(AND($B$6+D58-1>=$B$9, $B$6+D58-1<$B$9+$B$3), IF($B$6+D58-1<($B$9+$B$3/2), 19000, 25000), 0) -> 0 | K58: 0 | L58: 0
C59: 96 | D59: 57 | E59: Year 57 | F59: =IF(AND($B$6+D59-1>=$B$9, $B$6+D59-1<$B$9+$B$3), 15000, 0) -> 0 | G59: =IF($B$6+D59-1< 95, IF($B$6+D59-1=65, 25000, IF($B$6+D59-1>65, 25000+1000*($B$6+D59-1-65), 0)), 0) -> 0 | H59: =IF(OR($B$6+D59-1<$B$9, $B$6+D59-1>110), 0, 600*12) -> 7200 | I59: =IF(AND($B$6+D59-1>=60, $B$6+D59-1<=100), ($B$6+D59-1)*1000, 0) -> 96000 | J59: =IF(AND($B$6+D59-1>=$B$9, $B$6+D59-1<$B$9+$B$3), IF($B$6+D59-1<($B$9+$B$3/2), 19000, 25000), 0) -> 0 | K59: 0 | L59: 0
C60: 97 | D60: 58 | E60: Year 58 | F60: =IF(AND($B$6+D60-1>=$B$9, $B$6+D60-1<$B$9+$B$3), 15000, 0) -> 0 | G60: =IF($B$6+D60-1< 95, IF($B$6+D60-1=65, 25000, IF($B$6+D60-1>65, 25000+1000*($B$6+D60-1-65), 0)), 0) -> 0 | H60: =IF(OR($B$6+D60-1<$B$9, $B$6+D60-1>110), 0, 600*12) -> 7200 | I60: =IF(AND($B$6+D60-1>=60, $B$6+D60-1<=100), ($B$6+D60-1)*1000, 0) -> 97000 | J60: =IF(AND($B$6+D60-1>=$B$9, $B$6+D60-1<$B$9+$B$3), IF($B$6+D60-1<($B$9+$B$3/2), 19000, 25000), 0) -> 0 | K60: 0 | L60: 0
C61: 98 | D61: 59 | E61: Year 59 | F61: =IF(AND($B$6+D61-1>=$B$9, $B$6+D61-1<$B$9+$B$3), 15000, 0) -> 0 | G61: =IF($B$6+D61-1< 95, IF($B$6+D61-1=65, 25000, IF($B$6+D61-1>65, 25000+1000*($B$6+D61-1-65), 0)), 0) -> 0 | H61: =IF(OR($B$6+D61-1<$B$9, $B$6+D61-1>110), 0, 600*12) -> 7200 | I61: =IF(AND($B$6+D61-1>=60, $B$6+D61-1<=100), ($B$6+D61-1)*1000, 0) -> 98000 | J61: =IF(AND($B$6+D61-1>=$B$9, $B$6+D61-1<$B$9+$B$3), IF($B$6+D61-1<($B$9+$B$3/2), 19000, 25000), 0) -> 0 | K61: 0 | L61: 0
C62: 99 | D62: 60 | E62: Year 60 | F62: =IF(AND($B$6+D62-1>=$B$9, $B$6+D62-1<$B$9+$B$3), 15000, 0) -> 0 | G62: =IF($B$6+D62-1< 95, IF($B$6+D62-1=65, 25000, IF($B$6+D62-1>65, 25000+1000*($B$6+D62-1-65), 0)), 0) -> 0 | H62: =IF(OR($B$6+D62-1<$B$9, $B$6+D62-1>110), 0, 600*12) -> 7200 | I62: =IF(AND($B$6+D62-1>=60, $B$6+D62-1<=100), ($B$6+D62-1)*1000, 0) -> 99000 | J62: =IF(AND($B$6+D62-1>=$B$9, $B$6+D62-1<$B$9+$B$3), IF($B$6+D62-1<($B$9+$B$3/2), 19000, 25000), 0) -> 0 | K62: 0 | L62: 0
C63: 100 | D63: 61 | E63: Year 61 | F63: =IF(AND($B$6+D63-1>=$B$9, $B$6+D63-1<$B$9+$B$3), 15000, 0) -> 0 | G63: =IF($B$6+D63-1< 95, IF($B$6+D63-1=65, 25000, IF($B$6+D63-1>65, 25000+1000*($B$6+D63-1-65), 0)), 0) -> 0 | H63: =IF(OR($B$6+D63-1<$B$9, $B$6+D63-1>110), 0, 600*12) -> 7200 | I63: =IF(AND($B$6+D63-1>=60, $B$6+D63-1<=100), ($B$6+D63-1)*1000, 0) -> 100000 | J63: =IF(AND($B$6+D63-1>=$B$9, $B$6+D63-1<$B$9+$B$3), IF($B$6+D63-1<($B$9+$B$3/2), 19000, 25000), 0) -> 0 | K63: 0 | L63: 0
C64: 101 | D64: 62 | E64: Year 62 | F64: =IF(AND($B$6+D64-1>=$B$9, $B$6+D64-1<$B$9+$B$3), 15000, 0) -> 0 | G64: =IF($B$6+D64-1< 95, IF($B$6+D64-1=65, 25000, IF($B$6+D64-1>65, 25000+1000*($B$6+D64-1-65), 0)), 0) -> 0 | H64: =IF(OR($B$6+D64-1<$B$9, $B$6+D64-1>110), 0, 600*12) -> 7200 | I64: =IF(AND($B$6+D64-1>=60, $B$6+D64-1<=100), ($B$6+D64-1)*1000, 0) -> 0 | J64: =IF(AND($B$6+D64-1>=$B$9, $B$6+D64-1<$B$9+$B$3), IF($B$6+D64-1<($B$9+$B$3/2), 19000, 25000), 0) -> 0 | K64: 0 | L64: 0
C65: 102 | D65: 63 | E65: Year 63 | F65: =IF(AND($B$6+D65-1>=$B$9, $B$6+D65-1<$B$9+$B$3), 15000, 0) -> 0 | G65: =IF($B$6+D65-1< 95, IF($B$6+D65-1=65, 25000, IF($B$6+D65-1>65, 25000+1000*($B$6+D65-1-65), 0)), 0) -> 0 | H65: =IF(OR($B$6+D65-1<$B$9, $B$6+D65-1>110), 0, 600*12) -> 7200 | I65: =IF(AND($B$6+D65-1>=60, $B$6+D65-1<=100), ($B$6+D65-1)*1000, 0) -> 0 | J65: =IF(AND($B$6+D65-1>=$B$9, $B$6+D65-1<$B$9+$B$3), IF($B$6+D65-1<($B$9+$B$3/2), 19000, 25000), 0) -> 0 | K65: 0 | L65: 0
C66: 103 | D66: 64 | E66: Year 64 | F66: =IF(AND($B$6+D66-1>=$B$9, $B$6+D66-1<$B$9+$B$3), 15000, 0) -> 0 | G66: =IF($B$6+D66-1< 95, IF($B$6+D66-1=65, 25000, IF($B$6+D66-1>65, 25000+1000*($B$6+D66-1-65), 0)), 0) -> 0 | H66: =IF(OR($B$6+D66-1<$B$9, $B$6+D66-1>110), 0, 600*12) -> 7200 | I66: =IF(AND($B$6+D66-1>=60, $B$6+D66-1<=100), ($B$6+D66-1)*1000, 0) -> 0 | J66: =IF(AND($B$6+D66-1>=$B$9, $B$6+D66-1<$B$9+$B$3), IF($B$6+D66-1<($B$9+$B$3/2), 19000, 25000), 0) -> 0 | K66: 0 | L66: 0
C67: 104 | D67: 65 | E67: Year 65 | F67: =IF(AND($B$6+D67-1>=$B$9, $B$6+D67-1<$B$9+$B$3), 15000, 0) -> 0 | G67: =IF($B$6+D67-1< 95, IF($B$6+D67-1=65, 25000, IF($B$6+D67-1>65, 25000+1000*($B$6+D67-1-65), 0)), 0) -> 0 | H67: =IF(OR($B$6+D67-1<$B$9, $B$6+D67-1>110), 0, 600*12) -> 7200 | I67: =IF(AND($B$6+D67-1>=60, $B$6+D67-1<=100), ($B$6+D67-1)*1000, 0) -> 0 | J67: =IF(AND($B$6+D67-1>=$B$9, $B$6+D67-1<$B$9+$B$3), IF($B$6+D67-1<($B$9+$B$3/2), 19000, 25000), 0) -> 0 | K67: 0 | L67: 0
C68: 105 | D68: 66 | E68: Year 66 | F68: =IF(AND($B$6+D68-1>=$B$9, $B$6+D68-1<$B$9+$B$3), 15000, 0) -> 0 | G68: =IF($B$6+D68-1< 95, IF($B$6+D68-1=65, 25000, IF($B$6+D68-1>65, 25000+1000*($B$6+D68-1-65), 0)), 0) -> 0 | H68: =IF(OR($B$6+D68-1<$B$9, $B$6+D68-1>110), 0, 600*12) -> 7200 | I68: =IF(AND($B$6+D68-1>=60, $B$6+D68-1<=100), ($B$6+D68-1)*1000, 0) -> 0 | J68: =IF(AND($B$6+D68-1>=$B$9, $B$6+D68-1<$B$9+$B$3), IF($B$6+D68-1<($B$9+$B$3/2), 19000, 25000), 0) -> 0 | K68: 0 | L68: 0
C69: =C68+1 -> 106 | D69: 67 | E69: Year 67 | F69: =IF(AND($B$6+D69-1>=$B$9, $B$6+D69-1<$B$9+$B$3), 15000, 0) -> 0 | G69: =IF($B$6+D69-1< 95, IF($B$6+D69-1=65, 25000, IF($B$6+D69-1>65, 25000+1000*($B$6+D69-1-65), 0)), 0) -> 0 | H69: =IF(OR($B$6+D69-1<$B$9, $B$6+D69-1>110), 0, 600*12) -> 7200 | I69: =IF(AND($B$6+D69-1>=60, $B$6+D69-1<=100), ($B$6+D69-1)*1000, 0) -> 0 | J69: =IF(AND($B$6+D69-1>=$B$9, $B$6+D69-1<$B$9+$B$3), IF($B$6+D69-1<($B$9+$B$3/2), 19000, 25000), 0) -> 0 | K69: 0 | L69: 0
C70: 107 | D70: 68 | E70: Year 68 | F70: =IF(AND($B$6+D70-1>=$B$9, $B$6+D70-1<$B$9+$B$3), 15000, 0) -> 0 | G70: =IF($B$6+D70-1< 95, IF($B$6+D70-1=65, 25000, IF($B$6+D70-1>65, 25000+1000*($B$6+D70-1-65), 0)), 0) -> 0 | H70: =IF(OR($B$6+D70-1<$B$9, $B$6+D70-1>110), 0, 600*12) -> 7200 | I70: =IF(AND($B$6+D70-1>=60, $B$6+D70-1<=100), ($B$6+D70-1)*1000, 0) -> 0 | J70: =IF(AND($B$6+D70-1>=$B$9, $B$6+D70-1<$B$9+$B$3), IF($B$6+D70-1<($B$9+$B$3/2), 19000, 25000), 0) -> 0 | K70: 0 | L70: =IF(AND($B$6+D70-1>=$B$9,$B$6+D70-1<$B$9+$B$3),IF(AND(ISEVEN($B$6+D70-1), ISEVEN($B$9)),30000,IF(AND(ISODD($B$6+D70-1), ISODD($B$9)), 30000,0)), 0) -> 0
C71: 108 | D71: 69 | E71: Year 69 | F71: =IF(AND($B$6+D71-1>=$B$9, $B$6+D71-1<$B$9+$B$3), 15000, 0) -> 0 | G71: =IF($B$6+D71-1< 95, IF($B$6+D71-1=65, 25000, IF($B$6+D71-1>65, 25000+1000*($B$6+D71-1-65), 0)), 0) -> 0 | H71: =IF(OR($B$6+D71-1<$B$9, $B$6+D71-1>110), 0, 600*12) -> 7200 | I71: =IF(AND($B$6+D71-1>=60, $B$6+D71-1<=100), ($B$6+D71-1)*1000, 0) -> 0 | J71: =IF(AND($B$6+D71-1>=$B$9, $B$6+D71-1<$B$9+$B$3), IF($B$6+D71-1<($B$9+$B$3/2), 19000, 25000), 0) -> 0 | K71: 0 | L71: 0
C72: 109 | D72: 70 | E72: Year 70 | F72: =IF(AND($B$6+D72-1>=$B$9, $B$6+D72-1<$B$9+$B$3), 15000, 0) -> 0 | G72: =IF($B$6+D72-1< 95, IF($B$6+D72-1=65, 25000, IF($B$6+D72-1>65, 25000+1000*($B$6+D72-1-65), 0)), 0) -> 0 | H72: =IF(OR($B$6+D72-1<$B$9, $B$6+D72-1>110), 0, 600*12) -> 7200 | I72: =IF(AND($B$6+D72-1>=60, $B$6+D72-1<=100), ($B$6+D72-1)*1000, 0) -> 0 | J72: =IF(AND($B$6+D72-1>=$B$9, $B$6+D72-1<$B$9+$B$3), IF($B$6+D72-1<($B$9+$B$3/2), 19000, 25000), 0) -> 0 | K72: 0 | L72: 0
C73: =C72+1 -> 110 | D73: 71 | E73: Year 71 | F73: =IF(AND($B$6+D73-1>=$B$9, $B$6+D73-1<$B$9+$B$3), 15000, 0) -> 0 | G73: =IF($B$6+D73-1< 95, IF($B$6+D73-1=65, 25000, IF($B$6+D73-1>65, 25000+1000*($B$6+D73-1-65), 0)), 0) -> 0 | H73: =IF(OR($B$6+D73-1<$B$9, $B$6+D73-1>110), 0, 600*12) -> 7200 | I73: =IF(AND($B$6+D73-1>=60, $B$6+D73-1<=100), ($B$6+D73-1)*1000, 0) -> 0 | J73: =IF(AND($B$6+D73-1>=$B$9, $B$6+D73-1<$B$9+$B$3), IF($B$6+D73-1<($B$9+$B$3/2), 19000, 25000), 0) -> 0 | K73: 0 | L73: 0
C74: 111 | D74: 72 | E74: Year 72 | F74: 0 | G74: 0 | H74: 0 | I74: 0 | J74: 0 | K74: 0 | L74: 0
C75: 112 | D75: 73 | E75: Year 73 | F75: 0 | G75: 0 | H75: 0 | I75: 0 | J75: 0 | K75: 0 | L75: 0
